[Event "57th Biel Festival MTO 2024"]
[White "Moiseenko,Alexander"]
[Black "Ohler,Julius"]
[Site "Biel"]
[Round "1.7"]
[Annotator "TA"]
[Result "1-0"]
[Date "2024.07.15"]
[WhiteElo "2560"]
[BlackElo "2078"]
[PlyCount "159"]
[TimeControl "60"]

{[%evp 43,159,0,0,0,0,0,0,0,0,-75,0,0,73,73,68,61,64,0,13,9,16,0,15,14,11,10,99,26,27,0,117,117,124,123,118,22,12,0,0,0,20,0,29,0,0,0,0,0,0,0,0,0,0,0,0,0,0,0,0,0,0,0,8,8,8,0,0,0,0,0,0,0,8,0,0,0,0,0,0,0,0,0,0,0,0,0,0,0,0,0,74,74,1981,1967,1225,1102,29944,29941,29942,34,29942,29944,29945,29944,29945,29947,29957,29957,29958,29958,29961,29962,29961,29958,29962,29963,12504,8502]} 1. d4 {[%emt 0:0:2]} Nf6 {[%emt 0:0:10]} 2. c4 {[%emt 0:0:5]} e6 {[%emt 0:0:4]} 3. Nc3 {[%emt 0:0:17]} d5 {[%emt 0:0:31]} 4. Bg5 {[%emt 0:0:21]} Be7 {[%emt 0:0:5]} 5. e3 {[%emt 0:0:13]} O-O {[%emt 0:0:13]} 6. Nf3 {[%emt 0:0:13]} h6 {[%emt 0:0:31]} 7. Bh4 {[%emt 0:0:24]} b6 {[%emt 0:1:46]} 8. Bd3 {[%emt 0:1:14]} Bb7 {[%emt 0:3:58]} 9. O-O {[%emt 0:0:15]} Nbd7 {[%emt 0:2:49]} 10. Bg3 {[%emt 0:0:50]} c5 {[%emt 0:9:2]} 11. Qe2 {[%emt 0:1:42] D58: Queen's Gambit Declined: Tartakower Defence.} cxd4 {[%emt 0:17:1]} 12. exd4 {[%emt 0:0:55]} dxc4 {[%emt 0:6:3]} 13. Bxc4 {[%emt 0:0:6]} Nd5 {[%emt 0:2:6]} 14. Nxd5 {[%emt 0:5:19]} exd5 {[%emt 0:0:45]} 15. Bd3 {[%emt 0:20:19]} Nf6 $146 {[%emt 0:12:53]} ({Predecessor:} 15... Re8 16. Rfe1 Bb4 17. Qxe8+ Qxe8 18. Rxe8+ Rxe8 19. Bb5 Rd8 20. Rc1 Rc8 21. Rxc8+ Bxc8 22. Bc6 Nf6 {½-½ Disconzi da Silva,R (2345)-Sega,C BRA-ch sf Itapiruba 1997 (7)} )16. Ne5 {[%emt 0:12:33]} Ne4 {[%emt 0:5:50]} 17. Qh5 {[%emt 0:1:42]} Bd6 {[%emt 0:10:28]} 18. Bh4 {[%emt 0:3:49]} Be7 {[%emt 0:0:14]} 19. Bxe7 {[%emt 0:3:28]} Qxe7 {[%emt 0:0:58]} 20. Rac1 {[%emt 0:8:49]} Rac8 {[%emt 0:3:0]} 21. f3 {[%emt 0:3:6]} Nf6 {[%emt 0:8:13]} 22. Qf5 {[%emt 0:4:23]} Qb4 {[%emt 0:0:56]} 23. Nd7 {[%emt 0:7:26]} Qxd4+ {[%emt 0:0:15]} 24. Kh1 {[%emt 0:0:4]} Rfd8 {[%emt 0:6:7]} 25. Nxf6+ {[%emt 0:1:54]} Qxf6 {[%emt 0:0:8]} 26. Qh7+ {[%emt 0:0:3]} Kf8 {[%emt 0:0:6]} 27. Rce1 $1 {[%emt 0:0:53]} g6 {[%emt 0:2:18]} (27... g5 $1 $11 {keeps the balance.} )28. Qxh6+ $16 {[%emt 0:0:30]} Kg8 {[%emt 0:0:22]} 29. f4 $1 {[%emt 0:3:35]} Re8 {[%emt 0:4:14]} 30. Rxe8+ {[%emt 0:14:24]} (30. f5 $14 Rxe1 31. Rxe1 )Rxe8 $11 {[%emt 0:0:6]} 31. f5 {[%emt 0:0:3]} Qg7 $1 {[%emt 0:0:20]} 32. Qh4 {[%emt 0:7:55]} gxf5 {[%emt 0:3:46]} 33. Rxf5 {[%emt 0:2:17]} d4 $1 {[%emt 0:2:9]} 34. Bf1 $1 {[%emt 0:1:31]} (34. Rg5 Re1+ 35. Qxe1 Qxg5 $19 )Re5 {[%emt 0:5:7]} (34... Be4 $1 $11 35. Rg5 Bg6 )35. Qd8+ {[%emt 0:3:43]} (35. Rf4 $16 {Threatens to win with Qd8+.} Rg5 36. Rxd4 )Kh7 $11 {[%emt 0:0:4]} 36. Qh4+ {[%emt 0:0:15]} (36. Rf4 $2 {gets mated.} Qxg2+ 37. Bxg2 Re1+ )({White should try} 36. Rf2 $11 )Kg8 $16 {[%emt 0:0:5]} 37. Rf4 {[%emt 0:0:24]} Rg5 {[%emt 0:3:53]} 38. Rxd4 {[%emt 0:0:17]} Bd5 {[%emt 0:1:47]} 39. Qf2 {[%emt 0:2:47]} ({White should play} 39. Qf4 $16 )Qe5 $1 $11 {[%emt 0:1:0]} 40. Rf4 {[%emt 0:1:25]} Bxa2 {[%emt 0:0:30]} 41. h4 {[%emt 0:50:25]} Rg7 {[%emt 0:2:19]} 42. Rd4 {[%emt 0:0:0]} Bb1 {[%emt 0:7:8]} 43. Qd2 {[%emt 0:0:0]} Rg3 {[%emt 0:6:7]} 44. Rd8+ {[%emt 0:0:0]} Kg7 {[%emt 0:2:34]} 45. Qb4 {[%emt 0:0:0]} Kh7 {[%emt 0:14:11]} 46. Qc4 {[%emt 0:0:0]} Bg6 {[%emt 0:4:15]} 47. Rd5 {[%emt 0:0:0]} Qe4 {[%emt 0:0:32]} 48. Qxe4 {[%emt 0:0:0]} Bxe4 {[%emt 0:0:5]} 49. Rd7 {[%emt 0:0:0]} Kg7 {[%emt 0:5:48]} 50. Rxa7 {[%emt 0:0:0]} Rh3+ {[%emt 0:0:25]} 51. Kg1 {[%emt 0:0:0]} Rxh4 {[%emt 0:0:5]} 52. Ra4 {[%emt 0:0:0]} Rg4 {[%emt 0:2:51]} 53. Rb4 {[%emt 0:0:0]} Kf6 {[%emt 0:1:13]} 54. Rxb6+ {[%emt 0:0:0]} Ke5 {[%emt 0:0:4]} 55. Rb4 {[%emt 0:0:26]} f5 {[%emt 0:0:29]} 56. Rc4 {[%emt 0:2:5]} Rg3 {[%emt 0:3:37]} 57. Rc3 {[%emt 0:0:14]} Rg6 {[%emt 0:0:17]} 58. Rc5+ {[%emt 0:2:5]} Kd4 {[%emt 0:0:34]} 59. b4 {[%emt 0:0:56]} Bd5 {[%emt 0:5:53]} 60. Rc2 {[%emt 0:1:3]} Be4 {[%emt 0:1:37]} 61. Rc4+ {[%emt 0:16:6]} Ke3 {[%emt 0:15:4]} 62. Rc3+ {[%emt 0:1:22]} Kd4 {[%emt 0:0:6]} 63. Rb3 {[%emt 0:0:46]} f4 {[%emt 0:0:0]} 64. Kf2 {[%emt 0:0:0]} Rc6 {[%emt 0:0:0]} 65. Rb2 {[%emt 0:0:0]} Kc3 {[%emt 0:0:0]} 66. Re2 {[%emt 0:0:0]} Bd3 {[%emt 0:0:0] [#]} (66... Rc4 $11 )67. Re1 $1 $16 {[%emt 0:0:0]} Rb6 $2 {[%emt 0:0:0][%mdl 8192]} (67... Bc2 $16 )68. Bxd3 $18 {[%emt 0:0:0]} Kxd3 {[%emt 0:0:0]} 69. Kf3 {[%emt 0:0:0]} Rxb4 {[%emt 0:0:0]} 70. Rd1+ {[%emt 0:0:0]} Kc3 {[%emt 0:0:0]} 71. Rd6 $2 {[%emt 0:0:0]} (71. Rd5 {mates} Rb2 72. Rg5 (72. Kxf4 Rxg2 73. Kf3 Kc4 $11 )Kd4 73. Kxf4 Rf2+ 74. Kg3 Rf8 75. Kh4 Ke4 76. g4 )Rb2 $2 {[%emt 0:0:0][%mdl 8192]} (71... Kc4 $14 )72. Rg6 {[%emt 0:0:0]} ({Not} 72. Kxf4 Rxg2 73. Ke3 Rg3+ 74. Kf2 Rd3 $11 )Kd4 {[%emt 0:0:0]} 73. Kxf4 {[%emt 0:0:0]} Rf2+ {[%emt 0:0:0]} 74. Kg3 {[%emt 0:0:0]} Rf7 {[%emt 0:0:0]} 75. Kh4 {[%emt 0:0:33]} Ke5 {[%emt 0:0:0]} 76. g4 {[%emt 0:0:32]} Kf4 {[%emt 0:0:0]} 77. g5 {[%emt 0:0:13]} Kf5 {[%emt 0:0:0]} 78. Kh5 {[%emt 0:0:17]} Rh7+ {[%emt 0:0:0]} 79. Rh6 {[%emt 0:0:5]} Rf7 {[%emt 0:0:0]} 80. Rh8 {[%emt 0:0:11]} 1-0

[Event "57th Biel Festival MTO 2024"]
[White "Federer,Colin"]
[Black "Harsha Bharathakoti"]
[Site "Biel"]
[Round "1.8"]
[Annotator "TA"]
[Result "0-1"]
[Date "2024.07.15"]
[WhiteElo "2187"]
[BlackElo "2569"]
[PlyCount "74"]
[TimeControl "60"]

{[%evp 26,74,0,-7,2,0,-13,0,0,0,0,0,0,0,0,0,0,-11,-8,-10,-16,-2,-14,-26,-17,-26,-23,-36,20,0,0,10,11,0,0,-216,-210,-228,-226,-481,-451,-699,-731,-710,-727,-1116,-775,-1122,-1110,-910,-828]} 1. e4 {[%emt 0:0:7]} c5 {[%emt 0:0:58]} 2. Nf3 {[%emt 0:0:6]} Nc6 {[%emt 0:1:20]} 3. d4 {[%emt 0:0:13]} cxd4 {[%emt 0:0:7]} 4. Nxd4 {[%emt 0:0:4]} Qb6 {[%emt 0:3:38]} 5. Nb3 {[%emt 0:4:17]} Nf6 {[%emt 0:0:8]} 6. Nc3 {[%emt 0:1:41]} e6 {[%emt 0:0:24]} 7. Be3 {[%emt 0:7:0]} Qc7 {[%emt 0:0:43]} 8. a3 {[%emt 0:1:21]} d6 {[%emt 0:5:49]} 9. Be2 {[%emt 0:6:13]} a6 {[%emt 0:2:26]} 10. O-O {[%emt 0:2:11]} Be7 {[%emt 0:0:47]} 11. a4 {[%emt 0:5:19]} b6 {[%emt 0:4:30]} 12. f4 {[%emt 0:3:18]} O-O {[%emt 0:2:18]} 13. Bf3 {[%emt 0:4:23]} Rb8 {[%emt 0:5:10]} 14. Qe2 {[%emt 0:2:23]} Nd7 {[%emt 0:4:23]} 15. Qc4 {[%emt 0:10:3] Nd4 is the strong threat.} Nc5 {[%emt 0:3:52]} 16. Nd4 {[%emt 0:1:18]} Nxd4 {[%emt 0:25:0] The position is equal.} 17. Bxd4 {[%emt 0:1:6]} Bd7 {[%emt 0:1:38]} 18. f5 {[%emt 0:20:13]} b5 {[%emt 0:23:30]} 19. axb5 {[%emt 0:1:18]} axb5 {[%emt 0:0:6]} 20. Qb4 {[%emt 0:1:3]} Bc6 {[%emt 0:0:35]} (20... Qc8 {keeps more tension.} 21. Ra7 Na6 22. Qa5 Bf6 )21. fxe6 {[%emt 0:9:31]} Nxe6 {[%emt 0:1:17][%cal Od6d5] ...d5! would now be deadly.} 22. Bf2 {[%emt 0:6:9]} Bf6 {[%emt 0:11:2]} 23. Ra7 {[%emt 0:4:26]} Rb7 {[%emt 0:0:57]} 24. Rxb7 {[%emt 0:6:55]} Qxb7 {[%emt 0:0:7]} 25. Nd5 {[%emt 0:3:9] Black must now prevent Nxf6+.} Be5 {[%emt 0:0:23]} 26. Ra1 {[%emt 0:1:29] Threatens to win with Ra7.} Kh8 {[%emt 0:3:38]} ({Black should play} 26... Bxd5 $15 27. exd5 Ng5 )27. Ra7 $11 {[%emt 0:1:16]} Qb8 {[%emt 0:0:4]} 28. Ne7 {[%emt 0:1:12]} Ba8 {[%emt 0:2:49]} 29. Nd5 {[%emt 0:1:54]} f5 {[%emt 0:3:48]} 30. Ra5 $2 {[%emt 0:3:14]} (30. exf5 $11 {and White has nothing to worry.} Ng5 31. Ne7 (31. Be4 Nxe4 32. Qxe4 Qc8 $15 )Bxf3 (31... Nxf3+ 32. gxf3 Bf6 33. Rd7 $11 )32. gxf3 )fxe4 $19 {[%emt 0:1:42]} 31. Bxe4 {[%emt 0:1:9] [#]} Ng5 $1 {[%emt 0:2:18] And now ...Bc6 would win.} 32. Rxb5 $2 {[%emt 0:1:6] [#]} (32. Nf6 Nxe4 33. Rxb5 Qxb5 34. Qxb5 Nxf2 (34... Nxf6 $2 35. Bg3 $19 )(34... Bxf6 $2 35. Ba7 $19 )(34... gxf6 35. Be3 $17 )35. Kxf2 (35. Nd7 $2 Nh3+ 36. Kh1 Bc6 $19 ))Qe8 $1 {[%emt 0:0:5] Strongly threatening ...Nxe4. Black is clearly winning.} 33. Bd3 {[%emt 0:1:20]} (33. Nf6 $142 Bxf6 (33... gxf6 $2 34. Bxa8 Qxa8 35. Rb7 $19 )34. Bxa8 Qxa8 35. h4 )Bxd5 {[%emt 0:0:43]} 34. Rxd5 {[%emt 0:0:13]} Qf7 $1 {[%emt 0:0:3][%csl LRd5,LRf2]} 35. Be3 {[%emt 0:0:48]} Qxd5 {[%emt 0:0:16]} 36. Bxg5 {[%emt 0:0:4]} Bd4+ {[%emt 0:0:12]} 37. Kh1 {[%emt 0:0:14]} Bc5 {[%emt 0:1:42] Weighted Error Value: White=0.84/Black=0.28 (precise) .  Loses game:     	White=1     	---        Mistake:       	White=2     	Black=1      OK:         	White=9     	Black=9      Best:        	---       	Black=2      Strong:       	---       	Black=1} 0-1

[Event "57th Biel Festival MTO 2024"]
[White "Jumabayev,Rinat"]
[Black "Kersten,Uwe"]
[Site "Biel"]
[Round "1.9"]
[Annotator "TA"]
[Result "1-0"]
[Date "2024.07.15"]
[WhiteElo "2575"]
[BlackElo "2189"]
[PlyCount "67"]
[TimeControl "60"]

{[%evp 27,67,90,118,124,115,118,204,71,76,72,100,101,132,122,127,129,148,143,359,359,596,596,1402,642,802,767,779,728,1132,1100,863,392,725,725,762,732,3427,3112,29990,29990,29990,29988]} 1. e4 {[%emt 0:0:4]} c5 {[%emt 0:1:22]} 2. Nf3 {[%emt 0:0:7]} g6 {[%emt 0:4:27]} 3. d4 {[%emt 0:1:12]} cxd4 {[%emt 0:0:10]} 4. Nxd4 {[%emt 0:0:9]} Nf6 {[%emt 0:1:19]} 5. Nc3 {[%emt 0:0:28]} d6 {[%emt 0:0:8]} 6. f3 {[%emt 0:0:42]} Bg7 {[%emt 0:0:25]} 7. Be3 {[%emt 0:0:28]} O-O {[%emt 0:0:9]} 8. Qd2 {[%emt 0:0:7]} Nc6 {[%emt 0:0:6]} 9. O-O-O {[%emt 0:0:12]} Nxd4 {[%emt 0:3:11]} 10. Bxd4 {[%emt 0:0:10]} Be6 {[%emt 0:0:3]} 11. Kb1 {[%emt 0:6:29]} Qc7 {[%emt 0:0:24]} 12. h4 {[%emt 0:7:58]} Rfc8 {[%emt 0:0:27]} 13. h5 {[%emt 0:8:29]} Qa5 {[%emt 0:0:17]} 14. hxg6 {[%emt 0:6:12]} fxg6 {[%emt 0:2:33]} 15. a3 {[%emt 0:2:24]} (15. g4 Rxc3 16. Qxc3 Qxa2+ 17. Kc1 Rc8 $14 )Rab8 {[%emt 0:5:52]} 16. Qe3 {[%emt 0:21:43][%cal Oc3b5]} Bf7 {[%emt 0:13:17] [#]} (16... Rc6 $16 {was necessary.} )17. Bxf6 {[%emt 0:31:51]} (17. Bxa7 Rxc3 18. Qxc3 (18. bxc3 $2 Ra8 $19 )Qxa7 $19 )(17. Nb5 $1 $18 {is the precise move to win.} )Bxf6 $16 {[%emt 0:11:5]} 18. Nd5 {[%emt 0:0:6]} Bxd5 {[%emt 0:2:59]} 19. Rxd5 {[%emt 0:0:11]} Qc7 {[%emt 0:6:5] Black is weak on the light squares} 20. Qb3 {[%emt 0:6:2] aiming for Rc5+. Active counter play!} (20. Qxa7 $2 Qxc2+ 21. Ka2 Qxb2# )Kg7 {[%emt 0:6:29]} 21. f4 {[%emt 0:1:47]} b5 {[%emt 0:7:13]} 22. g4 {[%emt 0:1:40]} (22. Bxb5 a6 23. e5 dxe5 $15 )(22. Rxb5 $6 Rxb5 23. Bxb5 Rb8 $11 )e6 $2 {[%emt 0:20:16] This move loses the game for Black.} (22... h6 $16 23. Be2 (23. Bxb5 a6 $11 )(23. Rxb5 g5 $16 )a6 )23. Rd2 $18 {[%emt 0:1:31]} (23. Rxb5 h6 24. Rb4 (24. Qxe6 Qxc2+ 25. Ka2 Qxb2+ 26. Rxb2 Rxb2+ 27. Ka1 Rc1# )Rxb4 25. axb4 g5 $11 )e5 $2 {[%emt 0:11:3]} (23... Kf8 24. Rdh2 (24. Qxe6 Qf7 $18 )(24. Bxb5 Bxb2 25. Qxb2 Rxb5 $11 )Qf7 25. Rxh7 (25. Bxb5 a6 $18 )Bg7 )24. g5 {[%emt 0:2:22]} (24. Bxb5 exf4 25. c3 Qe7 $19 )Bd8 {[%emt 0:0:1]} 25. fxe5 {[%emt 0:4:30]} (25. Rxh7+ $142 Kxh7 26. Rh2+ Kg7 27. Qh3 Qxc2+ 28. Rxc2 Rxc2 29. Kxc2 exf4 30. Qh6+ Kf7 31. Qh7+ Ke6 32. Qxg6+ Kd7 33. Qf7+ Kc6 34. Qd5+ (34. Qxf4 Be7 $18 )(34. Qxa7 Rb7 $18 )Kc7 35. g6 (35. Bxb5 Rc8 $18 ))Bxg5 {[%emt 0:3:57]} 26. exd6 {[%emt 0:0:16][%cal Be5d6,Bd6d7][%mdl 32]} Qb7 {[%emt 0:1:14]} 27. Rd5 {[%emt 0:1:40][%cal Ob3h3] Black must now prevent Qh3!} h6 {[%emt 0:2:30]} 28. d7 {[%emt 0:1:43]} Rf8 {[%emt 0:1:0]} 29. e5 {[%emt 0:2:8]} (29. Qxb5 $2 {loses.} Rxf1+ 30. Rxf1 Qxb5 31. Rxb5 Rxb5 $19 )(29. Rxg5 $142 hxg5 30. Qc3+ Rf6 31. Qh3 Rxf1+ 32. Rxf1 Qxe4 33. Qc3+ Kh6 34. Re1 )a6 $2 {[%emt 0:4:19]} (29... b4 30. a4 Rf5 )30. Bd3 {[%emt 0:0:54]} Rbd8 {[%emt 0:1:26]} 31. e6 {[%emt 0:0:20][%cal Be5e6,Be6e7][%mdl 32] Hoping for Qc3+.} Be7 {[%emt 0:1:18] [#]} 32. Bxg6 $1 {[%emt 0:1:17][%mdl 512]} Kxg6 {[%emt 0:0:29]} (32... Rf6 33. Bf7 )33. Rg1+ {[%emt 0:0:41]} Bg5 {[%emt 0:0:50]} 34. e7 {[%emt 0:0:14] Weighted Error Value: White=0.77/Black=1.08.  Loses game:     	---       	Black=1      Mistake:       	White=2     	Black=2      Inaccurate:     	---       	Black=3      OK:         	White=7     	Black=1} 1-0

[Event "57th Biel Festival MTO 2024"]
[White "Kamber,Bruno"]
[Black "Gavrilescu,David"]
[Site "Biel"]
[Round "1.10"]
[Annotator "TA"]
[Result "0-1"]
[Date "2024.07.15"]
[WhiteElo "2188"]
[BlackElo "2538"]
[PlyCount "80"]
[TimeControl "60"]

{[%evp 10,80,20,19,18,0,16,0,11,0,-11,-10,-37,-43,-33,-34,31,14,16,29,15,0,0,12,87,33,171,146,139,124,140,114,197,193,203,188,179,183,160,97,112,114,100,118,103,18,54,47,208,0,0,-12,-12,-74,-74,-125,-84,-380,-384,-1980,-1867,-6170,-5893,-29983,-29984,-29984,-29985,-29987,-29986,-29986,-29987,-29977,-29978]} 1. e4 {[%emt 0:0:5]} c5 {[%emt 0:0:35]} 2. Nc3 {[%emt 0:0:20][%cal Bb1c3,Bc3d5,Bd5e3,Be3c4][%mdl 32]} e6 {[%emt 0:0:53]} 3. Nf3 {[%emt 0:0:17]} Nc6 {[%emt 0:0:34]} 4. Bb5 {[%emt 0:1:8]} Nd4 {[%emt 0:0:51]} 5. O-O {[%emt 0:0:13]} a6 {[%emt 0:0:37]} 6. Bd3 {[%emt 0:0:22]} Nc6 {[%emt 0:0:33]} 7. Nd5 {[%emt 0:20:7]} Bd6 {[%emt 0:0:39]} 8. Ne3 {[%emt 0:0:38]} Nf6 {[%emt 0:1:4] Die Stellung ist ausgeglichen.} 9. b4 {[%emt 0:13:24]} cxb4 {[%emt 0:8:41]} (9... Nxb4 $6 10. e5 $16 )10. a3 {[%emt 0:3:59]} bxa3 {[%emt 0:11:1]} 11. Nc4 {[%emt 0:0:38]} Be7 {[%emt 0:0:18]} 12. e5 {[%emt 0:0:17]} d5 {[%emt 0:1:33]} (12... Nd5 $15 )13. exd6 $1 $14 {[%emt 0:22:57]} ({Minderwertig wäre} 13. exf6 Bxf6 (13... dxc4 $2 14. fxe7 Nxe7 15. Bxc4 $18 )14. c3 dxc4 $17 )Bxd6 {[%emt 0:0:9]} 14. Nxd6+ {[%emt 0:0:37]} Qxd6 {[%emt 0:0:7]} 15. Bxa3 {[%emt 0:0:10]} Qc7 {[%emt 0:6:30]} 16. Re1 {[%emt 0:9:36]} b6 {[%emt 0:3:49]} (16... b5 $11 )17. Ng5 {[%emt 0:12:2]} (17. c4 $16 )Ne5 {[%emt 0:8:30]} (17... Bb7 $14 )18. Ne4 $18 {[%emt 0:7:54]} Nxe4 {[%emt 0:5:2]} 19. Bxe4 {[%emt 0:1:19]} Ra7 {[%emt 0:0:43]} 20. Bb2 {[%emt 0:2:7][%mdl 1024] Weiss hat starke Kompensation. Das Läuferpaar ist gut.} Kf8 {[%emt 0:3:3]} (20... f6 $16 )21. Ra3 {[%emt 0:5:6]} f6 {[%emt 0:5:28]} 22. Rc3 {[%emt 0:0:48]} Qd8 {[%emt 0:2:43]} 23. d4 {[%emt 0:2:3]} Nf7 {[%emt 0:7:5]} 24. Ba3+ {[%emt 0:0:35]} (24. d5 $142 {[%cal Oc3c8] Rxc8! wäre nun fies.} e5 25. f4 (25. Ba3+ Kg8 $14 ))Kg8 $16 {[%emt 0:0:1]} 25. Qh5 {[%emt 0:1:49]} (25. Qb1 {vereinfacht} g6 26. Rc6 Kg7 27. Qxb6 Rd7 28. Qxd8 Rhxd8 29. c3 )Ng5 {[%emt 0:3:25] [#]} 26. d5 $1 {[%emt 0:0:40] dxe6 ist eine echte Drohung.} g6 {[%emt 0:4:29] [#]} 27. Qe2 {[%emt 0:1:36]} (27. Qh6 $1 $16 {Und dxe6 würde nun gewinnen.} Nf7 28. Qd2 )Kg7 {[%emt 0:10:14]} 28. dxe6 {[%emt 0:0:31]} Bxe6 {[%emt 0:0:15]} (28... Nxe6 $14 29. Bc6 Nd4 )29. Rd1 $2 {[%emt 0:0:40]} (29. Bc6 $18 {Und jetzt h4 wäre schön.} Bf7 30. Rd3 )Rd7 $11 {[%emt 0:2:21]} 30. Rxd7+ {[%emt 0:1:22]} Qxd7 {[%emt 0:0:7]} 31. Bd3 {[%emt 0:0:21]} (31. h4 $11 Nxe4 32. Qxe4 )Re8 $17 {[%emt 0:1:31]} 32. Qf1 {[%emt 0:0:13]} (32. Bxa6 $2 {zu gefräßig.} Bc4 33. Qxc4 Re1+ $19 )({Besser ist} 32. Bc1 )b5 {[%emt 0:1:30][%cal Oe6h3] Schwarz steht aktiver.} 33. Rc5 $2 {[%emt 0:0:41][%mdl 8192] Weiss ist schwach auf den weissen Feldern} (33. Qa1 $17 )Bd5 $19 {[%emt 0:1:39][%cal Od5g2] Droht ...Bxg2! und aus.} 34. c4 $2 {[%emt 0:0:18] [#]} (34. Qd1 Bc4 35. Qc1 )Bxg2 $1 {[%emt 0:0:50][%mdl 512] ( -> ...Nh3+)} 35. Qxg2 {[%emt 0:0:23]} (35. Rc7 Qxc7 )Qxd3 {[%emt 0:0:7]} 36. Rc7+ {[%emt 0:0:11]} Kh6 {[%emt 0:0:16] Schwarz setzt Matt.} 37. Bf8+ {[%emt 0:2:59]} Kh5 {[%emt 0:0:56]} 38. Rxh7+ {[%emt 0:0:23]} Nxh7 {[%emt 0:0:2]} 39. h3 {[%emt 0:0:26]} Qd1+ {[%emt 0:0:17]} 40. Kh2 {[%emt 0:0:2]} Nxf8 {[%emt 0:0:20] Kein schönes Erlebnis für Weiß.   Gewichteter Fehlerwert: Weiß=0.82/Schwarz=0.22 (präzise) .  Verlustzug:     	Weiß=1     	Schwarz=1     Gewinn verpasst:   	Weiß=1     	---        Fehler:       	Weiß=6     	Schwarz=4     Ungenau:       	Weiß=1     	Schwarz=1     OK:         	Weiß=5     	Schwarz=11    Bester:       	Weiß=1     	Schwarz=4     Stark:        	Weiß=1     	---        Brilliant:      	---       	Schwarz=1} 0-1

[Event "57th Biel Festival MTO 2024"]
[White "Kobo,Ori"]
[Black "Demchenko,Svitlana"]
[Site "Biel"]
[Round "1.11"]
[Annotator "TA"]
[Result "1-0"]
[Date "2024.07.15"]
[WhiteElo "2529"]
[BlackElo "2176"]
[PlyCount "109"]
[TimeControl "60"]

{[%evp 9,109,18,24,10,14,12,22,10,16,19,18,0,0,8,36,31,34,36,75,69,76,71,117,104,104,105,105,103,131,130,188,157,179,179,163,192,181,193,168,181,178,91,109,116,118,100,85,23,23,25,98,87,75,50,75,75,92,87,104,104,77,78,77,77,121,121,54,58,255,105,262,262,567,562,663,674,1364,906,1299,1491,2134,2019,2341,1856,2657,2159,4618,3405,29978,29979,29979,29978,29979,29980,29986,29986,29987,29983,29986,29986,29989,29989]} 1. d4 {[%emt 0:0:13]} d5 {[%emt 0:0:11]} 2. c4 {[%emt 0:0:39]} e6 {[%emt 0:0:9]} 3. Nc3 {[%emt 0:0:21]} h6 {[%emt 0:0:10]} 4. Nf3 {[%emt 0:1:12]} Nf6 {[%emt 0:0:18]} 5. cxd5 {[%emt 0:3:50]} exd5 {[%emt 0:0:14]} 6. Bf4 {[%emt 0:0:9]} Bd6 {[%emt 0:1:1]} 7. Be5 {[%emt 0:0:8]} c6 {[%emt 0:3:47]} 8. e3 {[%emt 0:0:32] The position is equal.} Bxe5 {[%emt 0:13:36]} 9. Nxe5 {[%emt 0:6:0]} Nbd7 {[%emt 0:3:42]} 10. f4 {[%emt 0:21:3]} Nxe5 {[%emt 0:14:34]} 11. fxe5 {[%emt 0:3:36]} Ne4 {[%emt 0:8:57]} 12. Nxe4 {[%emt 0:12:35]} dxe4 {[%emt 0:0:28]} 13. Bc4 {[%emt 0:0:11]} Qa5+ {[%emt 0:15:47]} 14. Qd2 {[%emt 0:2:52]} Qxd2+ {[%emt 0:8:18]} 15. Kxd2 {[%emt 0:0:3]} Bf5 {[%emt 0:0:23]} (15... Ke7 $142 )16. Rhf1 {[%emt 0:3:54]} Bg6 {[%emt 0:0:8]} 17. Rf4 {[%emt 0:1:8] White is much more active. The black rooks are passive.} Ke7 {[%emt 0:4:26]} 18. Raf1 {[%emt 0:7:20]} Rhf8 {[%emt 0:0:10]} 19. a4 {[%emt 0:10:58]} Rad8 {[%emt 0:7:30]} (19... a5 $16 20. h4 b6 )20. Kc3 {[%emt 0:6:8]} h5 {[%emt 0:5:24]} 21. g4 {[%emt 0:2:23]} hxg4 {[%emt 0:12:51]} 22. Rxg4 {[%emt 0:0:33]} Rh8 {[%emt 0:0:22][%cal Oh8h3] [#]} 23. e6 $1 {[%emt 0:16:42][%cal Be5e6,Be6f7][%mdl 544]} Rxh2 {[%emt 0:0:21]} 24. exf7 {[%emt 0:0:27]} Rh6 {[%emt 0:0:13]} 25. Rfg1 {[%emt 0:4:19]} ({White should play} 25. Rg5 $18 Kf8 26. a5 )Rd6 $16 {[%emt 0:2:20][%cal Od6f6]} 26. Rg5 {[%emt 0:0:47] Threatening mate with Re5+.} Kf8 {[%emt 0:0:30]} 27. b4 {[%emt 0:3:31]} Rf6 {[%emt 0:1:52]} 28. R1g3 {[%emt 0:0:44]} (28. Ra5 $16 a6 29. b5 cxb5 30. axb5 Bxf7 31. bxa6 bxa6 32. d5 )Bxf7 $11 {[%emt 0:5:47]} 29. Rxg7 {[%emt 0:0:4]} Rh4 {[%emt 0:0:46]} (29... Rh1 $1 $11 30. Rxf7+ Rxf7 31. Bxf7 Kxf7 )30. Bxf7 {[%emt 0:0:43]} Rxf7 $16 {[%emt 0:0:2][%mdl 4096] Endgame. KRR-KRR} 31. Rg8+ {[%emt 0:0:19]} Ke7 {[%emt 0:0:1]} 32. R3g4 {[%emt 0:1:43]} Rfh7 {[%emt 0:1:5]} 33. R8g7+ {[%emt 0:0:46]} Rxg7 {[%emt 0:0:37]} 34. Rxh4 {[%emt 0:0:46] KR-KR} (34. Rxg7+ Kd6 $18 )Rg1 {[%emt 0:0:22]} 35. Rxe4+ {[%emt 0:0:34]} Kd6 {[%emt 0:0:1]} 36. Rh4 {[%emt 0:0:35]} Ra1 {[%emt 0:1:0]} 37. Rh6+ {[%emt 0:0:29]} Kd5 {[%emt 0:0:33]} (37... Kc7 $16 )38. Rh5+ $14 {[%emt 0:0:7]} Ke4 $2 {[%emt 0:0:58] Black is now going downhill.} (38... Ke6 $14 )39. Re5+ $18 {[%emt 0:0:19]} Kf3 {[%emt 0:0:1]} 40. a5 {[%emt 0:1:13]} Rc1+ $2 {[%emt 0:1:1]} (40... Rd1 {is a better chance.} 41. Kc2 Ke2 )41. Kd2 {[%emt 0:5:56]} Rb1 {[%emt 0:18:14] [#]} 42. b5 {[%emt 0:1:1][%mdl 512]} cxb5 {[%emt 0:3:17]} (42... a6 43. b6 )43. d5 {[%emt 0:0:26][%cal Bd4d5,Bd5d6,Bd6d7][%mdl 32] aiming for d6.} Rh1 {[%emt 0:0:4]} 44. d6 {[%emt 0:2:36][%cal Od6d7] And now d7! would win.} Rh6 {[%emt 0:0:37]} 45. Rd5 {[%emt 0:0:22][%cal Od6d7] White wants to mate with d7!} ({Less strong is} 45. Rxb5 Rxd6+ 46. Kc3 b6 $11 )Rh8 {[%emt 0:0:9]} 46. d7 {[%emt 0:4:18]} (46. Rxb5 Rd8 $16 )Rd8 {[%emt 0:0:13]} 47. Kd3 {[%emt 0:6:25]} ({Not} 47. Rxb5 Rxd7+ 48. Kc3 Kxe3 $11 )b4 {[%emt 0:1:52][%cal Bb5b4,Bb4b3][%mdl 32]} 48. e4 {[%emt 0:1:4][%cal Be3e4,Be4e5,Be5e6][%mdl 32] e5 would kill now.} b3 {[%emt 0:0:30]} 49. Rf5+ {[%emt 0:0:50] White mates.} Kg4 {[%emt 0:0:32]} 50. Rf7 {[%emt 0:0:8]} b6 {[%emt 0:2:38]} 51. Kc3 {[%emt 0:2:46]} Kg5 {[%emt 0:2:48] [#]} 52. e5 $1 {[%emt 0:0:8]} ({Weaker is} 52. Kxb3 Kg6 53. Re7 Kf6 $11 )bxa5 {[%emt 0:0:20]} 53. Kxb3 {[%emt 0:0:55]} Rb8+ {[%emt 0:0:20]} 54. Ka3 {[%emt 0:0:17]} Kg6 {[%emt 0:0:22]} 55. e6 {[%emt 0:0:9] Weighted Error Value: White=0.08 (flawless) /Black=0.40.  Loses game:     	---       	Black=1      Mistake:       	White=2     	Black=5      Inaccurate:     	---       	Black=5      OK:         	White=15    	Black=12     Best:        	White=5     	Black=3      Brilliant:      	White=1     	---} 1-0